{"text_format":"1","workbook":"xlsx","n_sheets":4,"sheets":["Вопросы","Результаты","Настройки","Инструкции"],"not_rendered":{"charts":1,"images":2,"macros":1,"external_links":0,"defined_names":2,"comments":0,"pivot_tables":0},"unopened":[],"bounds":{"document_bytes":16777216,"sheet_cells":100000,"rows_first":2000,"rows_last":500,"rows_between":2000,"halvings":0,"cell_chars":16384,"cell_head_chars":4096},"cells_cut":0,"cells_raw":0,"read":"whole","date_system":"1900"}

{"sheet":"Вопросы","index":0,"n_rows":17,"n_cols":13,"rows_kept":17,"cut":false,"hidden":false,"merged":[[0,0,0,1]]}
["Тестирование"]
[]
[null,"Укажите Вашу фамилию и имя"]
[null,"Укажите номер группы"]
[]
["№","Вопрос"]
[1,{"$f":"H7","v":"Назначение программы Power Point :"},null,null,null,null,{"$f":"IF(C7=M7,1,0)","v":0},{"$f":"Настройки!B1","v":"Назначение программы Power Point :"},{"$f":"Настройки!C2","v":"создание текстового документа"},{"$f":"Настройки!C3","v":"создание растрового изображения"},{"$f":"Настройки!C4","v":"создание презентаций"},{"$f":"Настройки!C5","v":"создание векторного изображения"},{"$f":"Настройки!D3","v":"создание презентаций"}]
[2,"Можно ли удалить один слайд….",null,null,null,null,0,{"$f":"Настройки!B6","v":"Можно ли удалить один слайд…."},{"$f":"Настройки!C7","v":"нельзя"},{"$f":"Настройки!C8","v":"можно"},{"$f":"Настройки!C9","v":"можно удалить только все слайды"},{"$f":"Настройки!C10","v":"можно удалить только весь документ"},{"$f":"Настройки!D8","v":"можно"}]
[3,"После создания слайда, можно ли изменить его макет….",null,null,null,null,0,{"$f":"Настройки!B11","v":"После создания слайда, можно ли изменить его макет…."},{"$f":"Настройки!C12","v":"можно"},{"$f":"Настройки!C13","v":"нельзя"},{"$f":"Настройки!C14","v":"необходимо удалить слайд и создать с новым макетом"},{"$f":"Настройки!C15","v":"необходимо скопировать макет на слайд"},{"$f":"Настройки!D13","v":"можно"}]
[4,{"$f":"H10","v":"Какой макет  имеет слайд во вновь созданной презентации?"},null,null,null,null,0,{"$f":"Настройки!B16","v":"Какой макет  имеет слайд во вновь созданной презентации?"},{"$f":"Настройки!C17","v":"только заголовок"},{"$f":"Настройки!C18","v":"пустой"},{"$f":"Настройки!C19","v":"главный"},{"$f":"Настройки!C20","v":"титульный"},{"$f":"Настройки!D18","v":"титульный"}]
[5,"Можно ли создать анимацию к отдельному объекту?",null,null,null,null,0,{"$f":"Настройки!B21","v":"Можно ли создать анимацию к отдельному объекту?"},{"$f":"Настройки!C22","v":"можно"},{"$f":"Настройки!C23","v":"нельзя"},{"$f":"Настройки!C24","v":"можно только к слайду"},{"$f":"Настройки!C25","v":"можно только к рисунку"},{"$f":"Настройки!D23","v":"можно"}]
[6,"Можно ли создать тему дизайна на свое усмотрение?",null,null,null,null,0,{"$f":"Настройки!B26","v":"Можно ли создать тему дизайна на свое усмотрение?"},{"$f":"Настройки!C27","v":"можно только загрузить новую тему"},{"$f":"Настройки!C28","v":" выбирается только из списка тем"},{"$f":"Настройки!C29","v":"нельзя"},{"$f":"Настройки!C30","v":"можно"},{"$f":"Настройки!D28","v":"можно"}]
[7,"Можно ли добавить на слайд еще не созданную диаграмму",null,null,null,null,0,{"$f":"Настройки!B31","v":"Можно ли добавить на слайд еще не созданную диаграмму"},{"$f":"Настройки!C32","v":"можно, если она создана в программе Word"},{"$f":"Настройки!C33","v":"можно, если она уже создана в другой программе "},{"$f":"Настройки!C34","v":"можно"},{"$f":"Настройки!C35","v":"нельзя"},{"$f":"Настройки!D33","v":"можно"}]
[8,"Можно ли изменить шаблон оформления готовой презентации",null,null,null,null,0,{"$f":"Настройки!B36","v":"Можно ли изменить шаблон оформления готовой презентации"},{"$f":"Настройки!C37","v":"можно"},{"$f":"Настройки!C38","v":"нельзя"},{"$f":"Настройки!C39","v":"Можно, если при создании презентации использовался Мастер автосодержания"},{"$f":"Настройки!C40","v":"Можно, если при создании презентации не использовался Мастер автосодержания"},{"$f":"Настройки!D38","v":"можно"}]
[9,"Как называется рабочая область в программе Power Point?",null,null,null,null,0,{"$f":"Настройки!B41","v":"Как называется рабочая область в программе Power Point?"},{"$f":"Настройки!C42","v":"электронная таблица"},{"$f":"Настройки!C43","v":"рабочая часть"},{"$f":"Настройки!C44","v":"рабочий лист"},{"$f":"Настройки!C45","v":"слайд"},{"$f":"Настройки!D43","v":"слайд"}]
[10,"Для чего используется гиперссылка?",null,null,null,null,0,{"$f":"Настройки!B46","v":"Для чего используется гиперссылка?"},{"$f":"Настройки!C47","v":"для смены слайда"},{"$f":"Настройки!C48","v":"для перехода на указанный слайд"},{"$f":"Настройки!C49","v":"для смены объекта"},{"$f":"Настройки!C50","v":"для выбора рисунка"},{"$f":"Настройки!D48","v":"для перехода на указанный слайд"}]
[null,null,null,null,null,null,{"$f":"SUM(G7:G16)","v":0},{"$f":"10-G17","v":10}]

{"sheet":"Результаты","index":1,"n_rows":17,"n_cols":5,"rows_kept":17,"cut":false,"hidden":false,"merged":[[2,0,2,1],[3,0,3,1],[0,0,0,1],[1,0,1,1]]}
["Результаты теста"]
[{"$f":"Вопросы!C3&\" группа № \"&Вопросы!C4","v":" группа № "},null,{"$f":"COUNTIF(Вопросы!C7:C16,\"\")","v":10}]
[{"$f":"\"Правильные ответы: \"&D3","v":"Правильные ответы: 0"},null,null,{"$f":"IF(C2<>0,0,Вопросы!G17)","v":0}]
[{"$f":"\"Допущенные ошибки: \"&D4","v":"Допущенные ошибки: 0"},null,null,{"$f":"IF(C2<>0,0,Вопросы!H17)","v":0}]
["№","Вопрос","Ваш \nответ","Правильный \nответ"]
[1,{"$f":"Вопросы!B7","v":"Назначение программы Power Point :"},{"$f":"IF(C2<>0,\" \",Вопросы!C7)","v":" "},{"$f":"IF(C2<>0,\"\",IF(Вопросы!G7<>1,Настройки!D3,\"\"))","v":""},{"$f":"Вопросы!M7","v":"создание презентаций"}]
[2,{"$f":"Вопросы!B8","v":"Можно ли удалить один слайд…."},{"$f":"IF(C2<>0,\" \",Вопросы!C8)","v":" "},{"$f":"IF(C2<>0,\"\",IF(Вопросы!G8<>1,Настройки!D8,\"\"))","v":""},{"$f":"Вопросы!M8","v":"можно"}]
[3,{"$f":"Вопросы!B9","v":"После создания слайда, можно ли изменить его макет…."},{"$f":"IF(C2<>0,\" \",Вопросы!C9)","v":" "},{"$f":"IF(C2<>0,\"\",IF(Вопросы!G9<>1,Настройки!D13,\"\"))","v":""},{"$f":"Вопросы!M9","v":"можно"}]
[4,{"$f":"Вопросы!B10","v":"Какой макет  имеет слайд во вновь созданной презентации?"},{"$f":"IF(C2<>0,\" \",Вопросы!C10)","v":" "},{"$f":"IF(C2<>0,\"\",IF(Вопросы!G10<>1,Настройки!D18,\"\"))","v":""},{"$f":"Вопросы!M10","v":"титульный"}]
[5,{"$f":"Вопросы!B11","v":"Можно ли создать анимацию к отдельному объекту?"},{"$f":"IF(C2<>0,\" \",Вопросы!C11)","v":" "},{"$f":"IF(C2<>0,\"\",IF(Вопросы!G11<>1,Настройки!D23,\"\"))","v":""},{"$f":"Вопросы!M11","v":"можно"}]
[6,{"$f":"Вопросы!B12","v":"Можно ли создать тему дизайна на свое усмотрение?"},{"$f":"IF(C2<>0,\" \",Вопросы!C12)","v":" "},{"$f":"IF(C2<>0,\"\",IF(Вопросы!G12<>1,Настройки!D28,\"\"))","v":""},{"$f":"Вопросы!M12","v":"можно"}]
[7,{"$f":"Вопросы!B13","v":"Можно ли добавить на слайд еще не созданную диаграмму"},{"$f":"IF(C2<>0,\" \",Вопросы!C13)","v":" "},{"$f":"IF(C2<>0,\"\",IF(Вопросы!G13<>1,Настройки!D33,\"\"))","v":""},{"$f":"Вопросы!M13","v":"можно"}]
[8,{"$f":"Вопросы!B14","v":"Можно ли изменить шаблон оформления готовой презентации"},{"$f":"IF(C2<>0,\" \",Вопросы!C14)","v":" "},{"$f":"IF(C2<>0,\"\",IF(Вопросы!G14<>1,Настройки!D38,\"\"))","v":""},{"$f":"Вопросы!M14","v":"можно"}]
[9,{"$f":"Вопросы!B15","v":"Как называется рабочая область в программе Power Point?"},{"$f":"IF(C2<>0,\" \",Вопросы!C15)","v":" "},{"$f":"IF(C2<>0,\"\",IF(Вопросы!G15<>1,Настройки!D43,\"\"))","v":""},{"$f":"Вопросы!M15","v":"слайд"}]
[10,{"$f":"Вопросы!B16","v":"Для чего используется гиперссылка?"},{"$f":"IF(C2<>0,\" \",Вопросы!C16)","v":" "},{"$f":"IF(C2<>0,\"\",IF(Вопросы!G16<>1,Настройки!D48,\"\"))","v":""},{"$f":"Вопросы!M16","v":"для перехода на указанный слайд"}]
[null,{"$f":"IF(C2<>0,\"Вы ответили не на все вопросы!!! Осталось \"&C2&\" из 10\",\"\")","v":"Вы ответили не на все вопросы!!! Осталось 10 из 10"}]
[null,null,{"$f":"IF(C2<>0,\"\",IF(D3>=10,5,IF(D3>=9,4,IF(D3>=7,3,2))))","v":""}]

{"sheet":"Настройки","index":2,"n_rows":50,"n_cols":4,"rows_kept":50,"cut":false,"hidden":true,"merged":[]}
[1,"Назначение программы Power Point :"]
[null,null,"создание текстового документа",{"$f":"MATCH(1,B2:B5,0)","v":3}]
[null,null,"создание растрового изображения",{"$f":"INDEX(C2:C5,D2)","v":"создание презентаций"}]
[null,1,"создание презентаций"]
[null,null,"создание векторного изображения"]
[2,"Можно ли удалить один слайд…."]
[null,null,"нельзя",{"$f":"MATCH(1,B7:B10,0)","v":2}]
[null,1,"можно",{"$f":"INDEX(C7:C10,D7)","v":"можно"}]
[null,null,"можно удалить только все слайды"]
[null,null,"можно удалить только весь документ"]
[3,"После создания слайда, можно ли изменить его макет…."]
[null,1,"можно",{"$f":"MATCH(1,B12:B15,0)","v":1}]
[null,null,"нельзя",{"$f":"INDEX(C12:C15,D12)","v":"можно"}]
[null,null,"необходимо удалить слайд и создать с новым макетом"]
[null,null,"необходимо скопировать макет на слайд"]
[4,"Какой макет  имеет слайд во вновь созданной презентации?"]
[null,null,"только заголовок",{"$f":"MATCH(1,B17:B20,0)","v":4}]
[null,null,"пустой",{"$f":"INDEX(C17:C20,D17)","v":"титульный"}]
[null,null,"главный"]
[null,1,"титульный"]
[5,"Можно ли создать анимацию к отдельному объекту?"]
[null,1,"можно",{"$f":"MATCH(1,B22:B25,0)","v":1}]
[null,null,"нельзя",{"$f":"INDEX(C22:C25,D22)","v":"можно"}]
[null,null,"можно только к слайду"]
[null,null,"можно только к рисунку"]
[6,"Можно ли создать тему дизайна на свое усмотрение?"]
[null,null,"можно только загрузить новую тему",{"$f":"MATCH(1,B27:B30,0)","v":4}]
[null,null," выбирается только из списка тем",{"$f":"INDEX(C27:C30,D27)","v":"можно"}]
[null,null,"нельзя"]
[null,1,"можно"]
[7,"Можно ли добавить на слайд еще не созданную диаграмму"]
[null,null,"можно, если она создана в программе Word",{"$f":"MATCH(1,B32:B35,0)","v":3}]
[null,null,"можно, если она уже создана в другой программе ",{"$f":"INDEX(C32:C35,D32)","v":"можно"}]
[null,1,"можно"]
[null,null,"нельзя"]
[8,"Можно ли изменить шаблон оформления готовой презентации"]
[null,1,"можно",{"$f":"MATCH(1,B37:B40,0)","v":1}]
[null,null,"нельзя",{"$f":"INDEX(C37:C40,D37)","v":"можно"}]
[null,null,"Можно, если при создании презентации использовался Мастер автосодержания"]
[null,null,"Можно, если при создании презентации не использовался Мастер автосодержания"]
[9,"Как называется рабочая область в программе Power Point?"]
[null,null,"электронная таблица",{"$f":"MATCH(1,B42:B45,0)","v":4}]
[null,null,"рабочая часть",{"$f":"INDEX(C42:C45,D42)","v":"слайд"}]
[null,null,"рабочий лист"]
[null,1,"слайд"]
[10,"Для чего используется гиперссылка?"]
[null,null,"для смены слайда",{"$f":"MATCH(1,B47:B50,0)","v":2}]
[null,1,"для перехода на указанный слайд",{"$f":"INDEX(C47:C50,D47)","v":"для перехода на указанный слайд"}]
[null,null,"для смены объекта"]
[null,null,"для выбора рисунка"]

{"sheet":"Инструкции","index":3,"n_rows":15,"n_cols":2,"rows_kept":15,"cut":false,"hidden":true,"merged":[[9,0,9,6],[0,0,0,6],[2,1,2,6],[3,1,3,6],[4,1,4,6],[5,1,5,6],[6,1,6,6],[7,1,7,6]]}
["Порядок работы:"]
[]
[]
[1,"Ввод ответов на вопросы теста осуществляется путем выбора правильного варианта из списка "]
[2,"До тех пор, пока не введены все ответы результаты теста просмотреть не возможно"]
[3,"На листе \"Результаты\" помещается информация о количестве правильных и ошибочных ответов как в текстовой, так и в графической форме"]
[4,"В приведенном списке вопросов отмечаются красным цветом ошибочные ответы, а рядом помещаются правильные варианты."]
[5,"На основании подсчета правильных ответов выставляется оценка."]
[]
["Формирование списка вопросов"]
[null,"Количество вопросов: 10."]
[null,"Количество вариантов ответов: до 4."]
[null,"Содержание вопросов не является фиксированным."]
[null,"Изменение списка вопросов осуществляется на листе \"Настройки\""]
[null,"Цифра \"1\" в столбце \"В\" указывает на правильный ответ."]